bitfinex-derivatives/quotes_SOLF0:USTF0_20250321
["timestamp","ask_amount","ask_price","bid_price","bid_amount"]
[1742516655333,7.86216739,128.17,128.14,0.05992161]
[1742516655520,0.05526739,128.17,128.14,0.05992161]
[1742516655928,7.8077,128.16,128.14,0.05992161]
[1742516656326,0.05526739,128.17,128.14,0.05992161]
[1742516657838,7.8078,128.15,128.14,0.05992161]
[1742516658034,27.82,128.15,128.14,0.05992161]
[1742516659743,35.6278,128.15,128.14,0.05992161]
[1742516665045,27.82,128.15,128.14,7.86832161]
[1742516665241,27.87526739,128.17,128.14,0.05992161]
[1742516666243,0.05526739,128.17,128.15,7.8078]
[1742516666852,0.05526739,128.17,128.16,7.8072]
[1742516667955,0.05526739,128.17,128.15,7.8074]
[1742516668858,7.86186739,128.17,128.15,7.8074]
[1742516669459,0.05526739,128.17,128.15,7.8074]
[1742516670350,27.87526739,128.17,128.15,7.8074]
[1742516671356,27.87526739,128.17,128.14,7.86812161]
[1742516671551,27.87526739,128.17,128.14,0.05992161]
[1742516672059,7.8078,128.15,128.14,0.05992161]
[1742516680365,7.8102,128.12,128.09,7.8112]
[1742516680767,27.82,128.13,128.08,265.3718]
[1742516681166,27.82,128.13,128.08,257.56]
[1742516681366,27.82,128.13,128.09,0.05548868]
[1742516681665,7.86919852,128.12,128.09,7.86658868]
[1742516682057,0.05929852,128.12,128.09,7.86658868]
[1742516684271,0.05929852,128.12,128.1,7.8107]
[1742516684863,0.05929852,128.12,128.09,0.05548868]
[1742516685067,4.08259852,128.12,128.09,0.05548868]
[1742516685271,7.8106,128.11,128.09,0.05548868]
[1742516685570,27.82,128.1,128.09,0.05548868]
[1742516686081,35.6309,128.1,128.09,0.05548868]
[1742516687475,27.82,128.1,128.09,0.05548868]
[1742516688276,35.6309,128.1,128.09,0.05548868]
[1742516691571,7.8135,128.06,128.02,258.4019]
[1742516691776,7.8135,128.06,128.02,257.64]
[1742516692177,7.8135,128.06,128.02,265.4555]
[1742516692777,27.84,128.07,128.03,0.04988749]
[1742516692778,7.87424396,128.05,128.03,0.04988749]
[1742516693681,7.8145,128.04,128.03,0.04988749]
[1742516694476,7.8161,128.02,127.98,27.84]
[1742516694772,27.84,128.04,127.97,259.7911]
[1742516694980,27.84,128.03,127.97,267.6095]
[1742516695171,27.84,128.03,127.97,259.7911]
[1742516695577,0.05421048,128.01,127.99,0.05494482]
[1742516697672,0.05421048,128.01,127.99,7.87244482]
[1742516700688,0.05421048,128.01,127.99,0.05494482]
[1742516701183,0.05421048,128.01,127.99,7.87254482]
[1742516702678,0.05421048,128.01,127.99,0.05494482]
[1742516702990,27.84,128.0,127.99,0.05494482]
[1742516704187,27.84,128.0,127.99,7.87254482]
[1742516704784,27.84,128.0,127.99,0.05494482]
[1742516705788,27.84,128.0,127.99,7.87254482]
[1742516706687,27.84,128.0,127.99,0.05494482]
[1742516708485,27.84,128.0,127.99,7.87254482]
[1742516708790,27.84,128.0,127.99,0.05494482]
[1742516709085,27.84,128.0,127.99,7.87254482]
[1742516709289,27.84,128.0,127.99,0.05494482]
[1742516709474,35.657,128.0,127.99,0.05494482]
[1742516711183,7.8185,127.98,127.92,285.7]
[1742516711389,27.86,127.97,127.92,285.7]
[1742516712183,0.05182847,127.96,127.93,0.05698939]
[1742516717086,7.87152847,127.96,127.93,0.05698939]
[1742516717883,7.8201,127.95,127.93,0.05698939]
[1742516718082,0.05182847,127.96,127.93,0.05698939]
[1742516718083,27.86,127.94,127.93,0.05698939]
[1742516718283,27.86,127.94,127.88,10.7784042]
[1742516718493,7.8237,127.89,127.88,10.7784042]
[1742516718685,27.86,127.89,127.88,10.7784042]
[1742516719891,35.6837,127.89,127.88,10.7784042]
[1742516721293,35.6837,127.89,127.87,0.05476862]
[1742516721484,27.86,127.89,127.87,0.05476862]
[1742516722101,35.6841,127.89,127.87,0.05476862]
[1742516725495,7.8243,127.88,127.87,0.05476862]
[1742516725997,27.86,127.89,127.81,28.7087]
[1742516726195,27.86,127.89,127.83,7.8271]
[1742516726596,27.86,127.89,127.81,0.8287]
[1742516726597,27.86,127.89,127.82,9.843]
[1742516726797,2.1742,127.88,127.82,7.8278]
[1742516726998,2.1742,127.88,127.8,27.88]
[1742516727201,0.05155426,127.86,127.84,0.05387176]
[1742516727403,27.88,127.85,127.84,0.05387176]
[1742516728505,35.7062,127.85,127.84,0.05387176]
[1742516728701,27.88,127.85,127.84,0.05387176]
[1742516729794,35.7062,127.85,127.84,0.05387176]
[1742516732107,35.7,127.85,127.73,15.667]
[1742516732302,27.88,127.85,127.68,27.98]
[1742516732503,27.88,127.85,127.71,4.0027]
[1742516732704,7.8292,127.8,127.72,27.98]
[1742516732900,35.8292,127.8,127.72,27.98]
[1742516733106,35.8292,127.8,127.72,286.14]
[1742516733304,0.0546099,127.77,127.74,7.8328]
[1742516733505,0.0546099,127.77,127.72,286.14]
[1742516734011,0.0546099,127.77,127.73,7.8331]
[1742516734311,0.0546099,127.77,127.72,286.14]
[1742516734508,0.0546099,127.77,127.73,7.833]
[1742516736809,7.8857099,127.77,127.72,293.974]
[1742516737531,7.8319,127.76,127.72,286.14]
[1742516737814,28.0146099,127.77,127.72,286.14]
[1742516738017,35.8458099,127.77,127.72,293.9736]
[1742516738813,35.8458099,127.77,127.72,265.9936]
[1742516739209,35.8458099,127.77,127.72,293.9536]
[1742516739808,7.8317,127.76,127.72,293.9536]
[1742516740818,7.8317,127.76,127.73,7.8335]
[1742516743317,35.8459099,127.77,127.73,7.8335]
[1742516744812,28.0146099,127.77,127.74,7.8325]
[1742516745009,0.0546099,127.77,127.72,286.12]
[1742516746016,0.0546099,127.77,127.76,7.8317]
[1742516754220,30.0498,127.83,127.76,7.82]
[1742516754419,2.1498,127.83,127.77,2.1072]
[1742516754614,2.1498,127.83,127.8,7.8288]
[1742516755008,9.9772,127.83,127.8,7.8288]
[1742516755211,10.03141502,127.83,127.8,7.87975609]
[1742516756223,2.20401502,127.83,127.81,7.8285]
[1742516760529,10.03151502,127.83,127.81,7.8285]
[1742516762131,7.828,127.82,127.8,7.87985609]
[1742516762426,2.20401502,127.83,127.8,7.87985609]
[1742516762731,7.8281,127.82,127.8,7.87985609]
[1742516763122,2.20401502,127.83,127.8,7.87985609]
[1742516763323,10.03181502,127.83,127.8,7.87985609]
[1742516763524,2.20401502,127.83,127.8,7.87985609]
[1742516764128,7.828,127.82,127.8,7.87985609]
[1742516769429,7.828,127.82,127.8,0.05095609]
[1742516770231,7.828,127.82,127.8,7.88015609]
[1742516770429,7.828,127.82,127.8,0.05095609]
[1742516770825,2.20401502,127.83,127.8,0.05095609]
[1742516771026,0.05421502,127.83,127.8,0.05095609]
[1742516772537,0.05421502,127.83,127.82,7.828]
[1742516785343,0.05421502,127.83,127.8,0.05095609]
[1742516785940,7.88211502,127.83,127.8,7.87995609]
[1742516786345,0.05421502,127.83,127.81,7.8286]
[1742516786545,0.05421502,127.83,127.8,0.05095609]
[1742516787047,7.88161502,127.83,127.81,7.8283]
[1742516787349,7.88161502,127.83,127.8,0.05095609]
[1742516788341,0.05421502,127.83,127.8,0.05095609]
[1742516788846,0.05421502,127.83,127.81,7.8286]
[1742516789753,7.88161502,127.83,127.81,7.8286]
[1742516790059,7.88161502,127.83,127.8,7.87995609]
[1742516790255,0.05421502,127.83,127.8,7.87995609]
[1742516790453,7.88191502,127.83,127.8,7.87995609]
[1742516791250,7.8281,127.82,127.8,7.87995609]
[1742516791441,7.8281,127.82,127.8,0.05095609]
[1742516792151,7.8281,127.82,127.8,7.88015609]
[1742516792653,7.8281,127.82,127.8,0.05095609]
[1742516793656,7.8281,127.82,127.8,7.88005609]
[1742516793853,7.8286,127.81,127.8,0.05095609]
[1742516794048,27.93421502,127.83,127.76,258.3]
[1742516794253,27.88,127.91,127.76,258.3]
[1742516794458,7.8234,127.9,127.77,20.6856]
[1742516794648,7.8234,127.9,127.85,7.826]
[1742516795358,0.05627049,127.89,127.86,0.02362554]
[1742516796645,0.05627049,127.89,127.86,7.84902554]
[1742516797056,7.87997049,127.89,127.86,7.84902554]
[1742516797357,0.05627049,127.89,127.86,0.02362554]
[1742516798852,7.88027049,127.89,127.86,0.02362554]
[1742516800857,7.8244,127.88,127.86,0.02362554]
[1742516802564,7.8249,127.87,127.86,0.02362554]
[1742516802765,0.05627049,127.89,127.86,0.02362554]
[1742516803761,7.8249,127.87,127.86,0.02362554]
[1742516808068,35.7049,127.87,127.86,0.02362554]
[1742516809067,27.88,127.87,127.86,0.02362554]
[1742516809266,7.8247,127.88,127.86,0.02362554]
[1742516809663,0.05627049,127.89,127.86,0.02362554]
[1742516810059,0.05627049,127.89,127.87,7.8244]
[1742516810265,0.05627049,127.89,127.86,0.02362554]
[1742516810572,0.05627049,127.89,127.87,7.8246]
[1742516811274,7.87997049,127.89,127.87,7.8249]
[1742516811468,0.05627049,127.89,127.87,7.8249]
[1742516811775,0.05627049,127.89,127.88,7.8243]
[1742516812673,0.05627049,127.89,127.87,7.8247]
[1742516814070,7.88007049,127.89,127.87,7.8247]
[1742516814274,0.05627049,127.89,127.87,7.8247]
[1742516815277,0.05627049,127.89,127.86,7.84892554]
[1742516815671,7.88047049,127.89,127.86,7.84892554]
[1742516815872,0.05627049,127.89,127.87,7.8248]
[1742516816366,0.05627049,127.89,127.86,7.84892554]
[1742516817375,7.88037049,127.89,127.86,7.84892554]
[1742516817876,7.88037049,127.89,127.87,7.8249]
[1742516818073,0.05627049,127.89,127.87,7.8249]
[1742516818478,0.05627049,127.89,127.86,7.84882554]
[1742516818675,7.88037049,127.89,127.86,7.84882554]
[1742516819780,0.05627049,127.89,127.86,0.02362554]
[1742516820278,0.05627049,127.89,127.87,7.8249]
[1742516820480,0.05627049,127.89,127.86,0.02362554]
[1742516820979,7.87997049,127.89,127.86,7.84882554]
[1742516821675,7.8244,127.88,127.86,0.02362554]
[1742516821872,0.05627049,127.89,127.86,0.02362554]
[1742516822578,0.05627049,127.89,127.86,7.84922554]
[1742516823171,7.88097049,127.89,127.86,7.84922554]
[1742516823879,0.05627049,127.89,127.87,7.8256]
[1742516825182,7.88077049,127.89,127.87,7.8256]
[1742516829082,0.05627049,127.89,127.87,7.8256]
[1742516830578,7.88077049,127.89,127.87,7.8256]
[1742516831489,0.05627049,127.89,127.87,7.8256]
[1742516831886,0.05627049,127.89,127.86,0.02362554]
[1742516832588,7.8255,127.88,127.86,0.02362554]
[1742516833683,7.8257,127.87,127.86,0.02362554]
[1742516834889,35.6854,127.88,127.86,0.02362554]
[1742516835591,7.8254,127.88,127.86,0.02362554]
[1742516835783,0.05627049,127.89,127.86,27.88362554]
[1742516836388,0.05627049,127.89,127.88,7.8251]
[1742516837186,6.3687,127.97,127.88,258.14]
[1742516837388,34.2287,127.97,127.89,27.86]
[1742516837682,34.2287,127.97,127.89,29.9082]
[1742516837895,7.8203,127.96,127.93,7.8215]
[1742516838098,34.2287,127.97,127.92,27.86]
[1742516838322,0.05321672,127.96,127.93,7.87620126]
[1742516839196,7.8209,127.95,127.93,0.05450126]
[1742516839695,7.87371672,127.96,127.93,0.05450126]
[1742516840790,7.8209,127.95,127.93,0.05450126]
[1742516841398,7.87371672,127.96,127.93,0.05450126]
[1742516841792,0.05321672,127.96,127.93,0.05450126]
[1742516842096,0.05321672,127.96,127.93,7.87640126]
[1742516842798,7.87341672,127.96,127.93,7.87640126]
[1742516842999,7.87341672,127.96,127.93,0.05450126]
[1742516844792,7.8208,127.95,127.93,0.05450126]
[1742516845698,7.87371672,127.96,127.93,0.05450126]
[1742516846198,7.87371672,127.96,127.93,7.87650126]
[1742516848095,0.05321672,127.96,127.93,0.05450126]
[1742516849095,0.05321672,127.96,127.95,7.8208]
[1742516849301,0.05321672,127.96,127.95,35.6808]
[1742516851292,0.05321672,127.96,127.95,27.86]
[1742516851998,7.87341672,127.96,127.93,35.73620126]
[1742516852904,0.05321672,127.96,127.94,7.8214]
[1742516853103,0.05321672,127.96,127.93,27.91450126]
[1742516854492,7.818,128.0,127.93,27.91450126]
[1742516854697,4.2365,128.01,127.94,258.02]
[1742516855103,7.8186,127.99,127.96,7.8199]
[1742516855300,4.2365,128.01,127.95,27.84]
[1742516855495,32.0765,128.01,127.95,27.84]
[1742516855697,0.05309046,127.99,127.97,0.05089817]
[1742516855895,27.84,127.98,127.94,258.02]
[1742516856096,7.8206,127.96,127.94,265.8414]
[1742516856912,7.8206,127.96,127.94,258.02]
[1742516857100,7.87451971,127.96,127.94,258.07251361]
[1742516857909,7.8208,127.95,127.94,258.07251361]
[1742516858806,7.8208,127.95,127.94,0.05251361]
[1742516859308,27.84,127.95,127.9,27.84]
[1742516859808,31.8119,127.95,127.9,27.84]
[1742516860109,7.8226,127.93,127.9,35.6636]
[1742516860511,0.04927393,127.93,127.9,35.69330097]
[1742516861609,7.8227,127.92,127.9,35.69330097]
[1742516862208,0.04927393,127.93,127.9,0.02970097]
[1742516862913,7.823,127.92,127.9,0.02970097]
[1742516865117,0.04927393,127.93,127.9,0.02970097]
[1742516865505,27.86,127.92,127.9,0.02970097]
[1742516866504,7.8233,127.91,127.9,0.02970097]
[1742516868516,35.6829,127.92,127.9,0.02970097]
[1742516869716,7.8233,127.91,127.9,0.02970097]
[1742516872622,35.6829,127.92,127.9,0.02970097]
[1742516872815,27.86,127.92,127.9,0.02970097]
[1742516873318,27.86,127.92,127.9,7.85350097]
[1742516874623,0.04927393,127.93,127.91,7.8233]
[1742516875625,7.87137393,127.93,127.91,7.8233]
[1742516876620,0.04927393,127.93,127.9,7.85320097]
[1742516876926,7.8227,127.92,127.9,7.85320097]
[1742516877121,0.04927393,127.93,127.9,7.85320097]
[1742516877321,7.87157393,127.93,127.9,7.85320097]
[1742516878023,7.8227,127.92,127.9,7.85320097]
[1742516878827,7.87167393,127.93,127.9,7.85320097]
[1742516879216,0.04927393,127.93,127.9,0.02970097]
[1742516879421,0.04927393,127.93,127.84,285.9]
[1742516879622,29.839,127.94,127.84,285.9]
[1742516880329,7.8251,127.89,127.84,285.9]
[1742516880829,7.8253,127.88,127.85,7.8264]
[1742516881028,7.8253,127.88,127.84,285.9]
[1742516881429,0.05371349,127.87,127.84,285.9]
[1742516882030,0.05371349,127.87,127.86,7.8263]
[1742516883232,0.05371349,127.87,127.85,7.8267]
[1742516883829,0.05371349,127.87,127.84,265.8673]
[1742516884226,7.87971349,127.87,127.84,265.8673]
[1742516885633,0.05371349,127.87,127.85,7.8269]
[1742516886035,0.05371349,127.87,127.84,258.04]
[1742516886335,0.05371349,127.87,127.86,7.8263]
[1742516886721,0.05371349,127.87,127.85,7.8266]
[1742516887846,0.05371349,127.87,127.86,7.8263]
[1742516889646,0.05371349,127.87,127.85,7.8267]
[1742516890047,0.05371349,127.87,127.84,258.04]
[1742516890548,0.05371349,127.87,127.85,7.8269]
[1742516891753,0.05371349,127.87,127.86,7.8263]
[1742516892051,0.05371349,127.87,127.84,258.04]
[1742516892656,7.8268,127.86,127.83,7.8279]
[1742516893346,7.827,127.85,127.83,7.8279]
[1742516894639,35.6867,127.86,127.83,7.8279]
[1742516895454,7.8271,127.85,127.82,7.8284]
[1742516895940,7.8772885,127.85,127.82,7.8284]
[1742516899157,7.8282,127.83,127.77,258.18]
[1742516899456,7.8282,127.83,127.78,27.86]
[1742516899646,0.05550368,127.81,127.8,7.8297]
[1742516901250,0.05550368,127.81,127.79,7.8306]
[1742516902652,0.05550368,127.81,127.8,7.83]
[1742516930479,27.86,127.85,127.83,7.828]
[1742516930867,35.6872,127.85,127.83,7.828]
[1742516931070,35.6872,127.85,127.78,27.86]
[1742516931071,35.6872,127.85,127.82,7.8285]
[1742516931580,35.73700363,127.85,127.82,7.88400368]
[1742516933380,7.8276,127.84,127.82,7.88400368]
[1742516933584,7.8276,127.84,127.82,0.05550368]
[1742516933882,7.8282,127.83,127.82,0.05550368]
[1742516938197,9.8762,127.84,127.82,0.05550368]
[1742516939898,2.0484,127.84,127.82,0.05550368]
[1742516940401,2.0484,127.84,127.83,7.8282]
[1742516942393,2.0484,127.84,127.82,7.88400368]
[1742516942897,9.876,127.84,127.82,7.88400368]
[1742516943299,27.90980363,127.85,127.84,7.8275]
[1742516943499,0.04980363,127.85,127.84,7.8275]
[1742516943794,0.04980363,127.85,127.83,7.8278]
[1742516943999,0.04980363,127.85,127.82,0.05550368]
[1742516944701,7.8282,127.83,127.82,0.05550368]
[1742516950403,2.1357,127.83,127.77,286.04]
[1742516950695,4.2547,127.83,127.77,286.04]
[1742516950901,4.2547,127.83,127.77,293.8715]
[1742516951101,7.8303,127.8,127.77,293.8715]
[1742516951290,7.8303,127.8,127.77,266.0115]
[1742516951493,7.88334962,127.8,127.77,266.0115]
[1742516952697,0.05304962,127.8,127.78,7.8311]
[1742516953300,0.05304962,127.8,127.77,258.18]
[1742516953997,0.05304962,127.8,127.79,7.8306]
[1742516955099,0.05304962,127.8,127.79,35.6906]
[1742516961102,4.962e-05,127.8,127.79,35.6906]
[1742516961306,2.1821,127.89,127.79,35.6906]
[1742516961307,27.86,127.85,127.79,27.86]
[1742516962006,27.86,127.85,127.83,7.8277]
[1742516962404,27.91793218,127.85,127.83,7.88074962]
[1742516962902,35.74503218,127.85,127.83,0.05304962]
[1742516964500,35.74503218,127.85,127.83,7.88104962]
[1742516964909,35.74503218,127.85,127.83,0.05304962]
[1742516965407,27.91793218,127.85,127.83,0.05304962]
[1742516966113,35.74543218,127.85,127.83,0.05304962]
[1742516968407,7.8275,127.84,127.83,0.05304962]
[1742516981927,7.88523218,127.85,127.83,7.88114962]
[1742516982928,7.88523218,127.85,127.83,0.05304962]
[1742516984429,7.88523218,127.85,127.83,7.88094962]
[1742516985335,0.05793218,127.85,127.77,258.18]
[1742516985538,2.1398,127.84,127.77,286.02]
[1742516985720,27.84,127.83,127.77,286.02]
[1742516986631,7.8304,127.8,127.77,286.02]
[1742516986935,7.8307,127.79,127.77,286.02]
[1742516987134,0.05236717,127.81,127.77,286.02]
[1742516987537,7.8304,127.8,127.77,286.02]
[1742516990133,0.05236717,127.81,127.77,286.02]
[1742516992337,7.88186717,127.81,127.78,7.8309]
[1742516993539,7.8303,127.8,127.77,293.8515]
[1742516994551,0.05236717,127.81,127.77,293.8515]
[1742516994552,7.8306,127.79,127.77,293.8515]
[1742516995046,7.8306,127.79,127.77,286.02]
[1742516995237,7.8312,127.78,127.77,258.18]
[1742516995750,7.8308,127.79,127.77,258.18]
[1742516997353,7.8303,127.8,127.77,266.0118]
[1742516998148,7.88206717,127.81,127.78,7.8311]
[1742516998652,0.05236717,127.81,127.78,7.8311]
[1742516999544,7.83,127.8,127.78,7.8311]
[1742516999746,0.05236717,127.81,127.77,258.18]
[1742517000251,0.05236717,127.81,127.79,7.8306]
[1742517000448,0.05236717,127.81,127.77,258.18]
[1742517001156,7.88176717,127.81,127.78,7.8311]
[1742517001348,7.88176717,127.81,127.77,258.18]
[1742517001549,0.05236717,127.81,127.77,258.18]
[1742517001755,0.05236717,127.81,127.79,7.8305]
[1742517002858,7.88206717,127.81,127.78,7.8309]
[1742517006156,7.88206717,127.81,127.79,7.8306]
[1742517007350,7.88206717,127.81,127.78,7.8309]
[1742517007551,7.88206717,127.81,127.77,258.18]
[1742517008158,7.88206717,127.81,127.78,7.8311]
[1742517009262,7.8306,127.79,127.77,266.0115]
[1742517009852,27.84,127.8,127.73,260.3632]
[1742517010054,27.84,127.8,127.73,258.3]
[1742517010055,30.0341,127.8,127.73,258.3]
[1742517010354,7.8328,127.76,127.73,266.134]
[1742517011263,7.8334,127.75,127.72,7.8344]
[1742517011760,0.0557637,127.75,127.72,7.8344]
[1742517011966,0.0557637,127.75,127.68,260.3454]
[1742517012257,27.84,127.74,127.69,27.84]
[1742517012451,27.84,127.74,127.7,7.8359]
[1742517012651,27.84,127.74,127.68,260.3454]
[1742517012851,7.8346,127.73,127.68,288.1854]
[1742517013052,0.04936438,127.72,127.69,7.8365]
[1742517014056,0.04936438,127.72,127.68,266.1572]
[1742517014362,27.86,127.71,127.68,266.1572]
[1742517014758,35.6956,127.71,127.68,258.32]
[1742517016464,27.86,127.71,127.68,258.32]
[1742517017459,27.86,127.71,127.68,266.1569]
[1742517017664,27.86,127.71,127.68,258.32]
[1742517017965,27.86,127.71,127.7,7.8361]
[1742517018461,27.86,127.71,127.68,258.32]
[1742517018662,27.86,127.71,127.68,266.1572]
[1742517018860,27.86,127.71,127.68,258.32]
[1742517019056,27.86,127.71,127.64,27.86]
[1742517019450,0.05262027,127.69,127.67,7.8377]
[1742517020060,0.05262027,127.69,127.64,27.86]
[1742517020764,0.05262027,127.69,127.68,7.8374]
[1742517028067,0.05262027,127.69,127.61,2.1826]
[1742517028267,27.86,127.68,127.61,2.1826]
[1742517028456,0.05119026,127.66,127.63,7.84]
[1742517028862,0.05119026,127.66,127.61,30.0426]
[1742517029064,0.05119026,127.66,127.62,7.8407]
[1742517030172,0.05119026,127.66,127.63,7.8401]
[1742517030468,0.05119026,127.66,127.61,30.0426]
[1742517030661,0.05119026,127.66,127.64,7.8395]
[1742517032471,0.05119026,127.66,127.63,7.8403]
[1742517033660,0.05119026,127.66,127.64,7.8397]
[1742517034772,0.05119026,127.66,127.61,30.0426]
[1742517035371,0.05119026,127.66,127.64,7.8394]
[1742517035868,0.05119026,127.66,127.61,30.0426]
[1742517036075,0.05119026,127.66,127.65,7.8392]
[1742517045181,1.9985,127.7,127.65,7.8392]
[1742517045182,2.185,127.74,127.65,35.6992]
[1742517045374,27.86,127.73,127.65,27.86]
[1742517045576,2.0495,127.75,127.66,260.6085]
[1742517045779,27.86,127.76,127.73,7.8339]
[1742517046280,1.9897,127.81,127.7,27.86]
[1742517046479,0.04950944,127.76,127.73,0.05119026]
[1742517046679,0.04950944,127.76,127.73,27.91119026]
[1742517046880,0.04950944,127.76,127.75,7.8331]
[1742517048884,0.04950944,127.76,127.73,27.91119026]
[1742517049079,7.88240944,127.76,127.73,27.91119026]
[1742517049282,0.04950944,127.76,127.73,0.05119026]
[1742517050590,7.88230944,127.76,127.73,7.88519026]
[1742517050889,0.04950944,127.76,127.73,0.05119026]
[1742517051189,0.04950944,127.76,127.75,7.8331]
[1742517051488,1.9897,127.81,127.73,30.00179026]
[1742517051686,7.83,127.8,127.77,7.8313]
[1742517052290,7.8306,127.79,127.76,35.6921]
[1742517052492,1.9897,127.81,127.74,27.86]
[1742517052790,7.8317,127.78,127.76,0.05740259]
[1742517053287,27.91303955,127.79,127.76,0.05740259]
[1742517053894,7.8316,127.78,127.76,0.05740259]
[1742517054393,27.91303955,127.79,127.76,0.05740259]
[1742517056909,7.8317,127.78,127.76,0.05740259]
[1742517057201,27.91303955,127.79,127.76,0.05740259]
[1742517057396,7.8318,127.77,127.76,0.05740259]
[1742517058404,7.8315,127.78,127.76,0.05740259]
[1742517058790,27.91303955,127.79,127.76,7.88980259]
[1742517059303,35.74413955,127.79,127.76,7.88980259]
[1742517059499,27.91303955,127.79,127.76,7.88980259]
[1742517060703,0.05303955,127.79,127.76,7.88980259]
[1742517061007,0.05303955,127.79,127.77,7.8318]
[1742517061202,0.05303955,127.79,127.76,0.05740259]
[1742517061508,0.05303955,127.79,127.78,7.8312]
[1742517061699,0.05303955,127.79,127.78,35.6712]
[1742517062895,0.05303955,127.79,127.78,27.84]
[1742517063203,0.05303955,127.79,127.76,27.89740259]
[1742517063801,7.88393955,127.79,127.76,35.72960259]
[1742517064607,7.8314,127.78,127.76,0.05740259]
[1742517065302,0.05303955,127.79,127.76,0.05740259]
[1742517065904,7.8318,127.77,127.76,0.05740259]
[1742517067411,7.8316,127.78,127.76,0.05740259]
[1742517067708,7.88373955,127.79,127.76,0.05740259]
[1742517067909,0.05303955,127.79,127.76,0.05740259]
[1742517068306,0.05303955,127.79,127.77,7.8316]
[1742517068507,0.05303955,127.79,127.76,0.05740259]
[1742517069308,7.88373955,127.79,127.76,7.88960259]
[1742517070007,0.05303955,127.79,127.77,7.8316]
[1742517070912,0.05303955,127.79,127.78,7.8312]
[1742517071107,0.05303955,127.79,127.78,35.6712]
[1742517072010,35.6677,127.84,127.81,7.829]
[1742517072812,27.84,127.84,127.8,7.8297]
[1742517073307,7.88061255,127.83,127.81,0.05450598]
[1742517073704,0.05211255,127.83,127.81,7.88380598]
[1742517073904,0.05211255,127.83,127.81,0.05450598]
[1742517075208,0.05211255,127.83,127.82,7.8288]
[1742517077318,2.0452,127.88,127.85,7.8268]
[1742517077518,376.6421,127.95,127.84,27.82]
[1742517077718,34.0114,127.92,127.85,27.82]
[1742517077907,27.82,127.91,127.85,27.82]
[1742517078416,27.82,127.91,127.86,7.826]
[1742517078615,0.05131578,127.89,127.87,0.05649304]
[1742517078916,0.05131578,127.89,127.87,7.88179304]
[1742517079118,0.05131578,127.89,127.87,0.05649304]
[1742517079917,7.87601578,127.89,127.87,0.05649304]
[1742517080218,0.05131578,127.89,127.87,0.05649304]
[1742517080723,7.8251,127.88,127.87,0.05649304]
[1742517080912,0.05131578,127.89,127.87,0.05649304]
[1742517081220,7.87611578,127.89,127.87,0.05649304]
[1742517081716,0.05131578,127.89,127.87,7.88179304]
[1742517082017,0.05131578,127.89,127.87,0.05649304]
[1742517082419,0.05131578,127.89,127.88,7.8251]
[1742517082820,0.05131578,127.89,127.88,35.6451]
[1742517083721,27.82,127.95,127.88,27.82]
[1742517083914,27.82,127.96,127.88,27.82]
[1742517084109,7.8216,127.94,127.91,7.8229]
[1742517084720,0.05547509,127.94,127.91,0.05491856]
[1742517085626,7.8227,127.92,127.91,0.05491856]
[1742517090732,27.82,127.93,127.82,1.0175]
[1742517091027,2.0882,127.91,127.82,1.0175]
[1742517091224,7.8263,127.87,127.84,293.9673]
[1742517091427,27.82,127.9,127.84,258.32]
[1742517091830,7.8261,127.87,127.84,266.1475]
[1742517092126,7.8261,127.87,127.86,0.05263269]
[1742517096329,7.87795584,127.88,127.86,0.05263269]
[1742517097330,7.8257,127.87,127.86,0.05263269]
[1742517098231,0.05255584,127.88,127.86,0.05263269]
[1742517098232,7.87795584,127.88,127.86,0.05263269]
[1742517098424,0.05255584,127.88,127.86,0.05263269]
[1742517098824,0.05255584,127.88,127.87,7.8257]
[1742517102231,0.05255584,127.88,127.87,27.64732653]
[1742517103032,2.0419,127.95,127.87,19.82162653]
[1742517103233,2.0419,127.95,127.9,19.82162653]
[1742517103534,2.0419,127.95,127.93,7.8216]
[1742517104032,2.0419,127.95,127.93,7.87571962]
[1742517104226,9.92144223,127.95,127.93,7.87571962]
[1742517104434,9.92144223,127.95,127.93,0.05411962]